[Event "*** Titled Tuesday Blitz"]
[Site "Chess.com"]
[Date "2020.04.28"]
[Round "6"]
[White "Izoria123"]
[Black "Sibelephant"]
[Result "1/2-1/2"]
[WhiteElo "2825"]
[BlackElo "3189"]
[TimeControl "180+1"]
[EndTime "11:07:23 PDT"]
[Termination "Game drawn by agreement"]

1. Nf3 {[%clk 0:03:00.9]} 1... g6 {[%clk 0:02:58.6]} 2. e4 {[%clk 0:03:00.4]}
2... d6 {[%clk 0:02:58.1]} 3. c4 {[%clk 0:02:58.9]} 3... Bg4 {[%clk 0:02:54.6]}
4. d4 {[%clk 0:02:54.4]} 4... Bg7 {[%clk 0:02:54.9]} 5. Be2 {[%clk 0:02:52]}
5... Bxf3 {[%clk 0:02:51.5]} 6. Bxf3 {[%clk 0:02:51.8]} 6... Nc6 {[%clk
0:02:52.1]} 7. Be3 {[%clk 0:02:51.1]} 7... e5 {[%clk 0:02:52.6]} 8. d5 {[%clk
0:02:48.8]} 8... Nd4 {[%clk 0:02:52.8]} 9. Bxd4 {[%clk 0:02:42.4]} 9... exd4
{[%clk 0:02:52.8]} 10. Nd2 {[%clk 0:02:42.7]} 10... Nf6 {[%clk 0:02:47.4]} 11.
O-O {[%clk 0:02:23]} 11... O-O {[%clk 0:02:44.6]} 12. Nb3 {[%clk 0:01:51.5]}
12... Nd7 {[%clk 0:02:44.6]} 13. Bg4 {[%clk 0:01:32.5]} 13... Re8 {[%clk
0:02:28.9]} 14. Bxd7 {[%clk 0:01:15.2]} 14... Qxd7 {[%clk 0:02:29.2]} 15. Qd3
{[%clk 0:01:14.8]} 15... f5 {[%clk 0:01:34.7]} 16. exf5 {[%clk 0:01:13.8]} 16...
Qxf5 {[%clk 0:01:34.4]} 17. Qxf5 {[%clk 0:01:13.5]} 17... gxf5 {[%clk 0:01:35]}
18. Nc1 {[%clk 0:01:13.5]} 18... c5 {[%clk 0:00:29]} 19. dxc6 {[%clk 0:01:06]}
19... bxc6 {[%clk 0:00:29.4]} 20. Nd3 {[%clk 0:01:06.7]} 20... a5 {[%clk
0:00:24.8]} 21. Rfe1 {[%clk 0:01:05.9]} 21... Re4 {[%clk 0:00:23.4]} 22. Kf1
{[%clk 0:00:51.3]} 22... Kf7 {[%clk 0:00:23.8]} 23. Rad1 {[%clk 0:00:43.5]}
23... a4 {[%clk 0:00:19]} 24. f3 {[%clk 0:00:40.9]} 24... Re3 {[%clk 0:00:16]}
25. Rxe3 {[%clk 0:00:39.7]} 25... dxe3 {[%clk 0:00:16.4]} 26. Ke2 {[%clk
0:00:40.2]} 26... Bd4 {[%clk 0:00:11.5]} 27. Nb4 {[%clk 0:00:34.9]} 27... Rb8
{[%clk 0:00:06.2]} 28. Rxd4 {[%clk 0:00:19.9]} 28... Rxb4 {[%clk 0:00:06.3]} 29.
Rxd6 {[%clk 0:00:15]} 29... Rxb2+ {[%clk 0:00:06.6]} 30. Kxe3 {[%clk 0:00:15.6]}
30... Rxg2 {[%clk 0:00:01.6]} 31. Rxc6 {[%clk 0:00:15.9]} 31... Rxa2 {[%clk
0:00:02.2]} 32. Ra6 {[%clk 0:00:16.5]} 32... Rxh2 {[%clk 0:00:01.7]} 33. Rxa4
{[%clk 0:00:15.3]} 33... Rc2 {[%clk 0:00:02.3]} 34. Kf4 {[%clk 0:00:14.4]} 34...
Kf6 {[%clk 0:00:02.2]} 35. Ra6+ {[%clk 0:00:14]} 35... Kf7 {[%clk 0:00:02.7]}
36. Kxf5 {[%clk 0:00:13.4]} 36... Rxc4 {[%clk 0:00:02.5]} 37. Ra7+ {[%clk
0:00:14]} 37... Kg8 {[%clk 0:00:03.2]} 38. f4 {[%clk 0:00:13.9]} 38... Rc6
{[%clk 0:00:03.5]} 39. Kg5 {[%clk 0:00:14.2]} 39... h6+ {[%clk 0:00:03.9]} 40.
Kh5 {[%clk 0:00:14.4]} 40... Rf6 {[%clk 0:00:04]} 41. f5 {[%clk 0:00:14.5]}
41... Rxf5+ {[%clk 0:00:04.4]} 42. Kg6 {[%clk 0:00:14.4]} 42... Rg5+ {[%clk
0:00:04.7]} 43. Kxh6 {[%clk 0:00:14.6]} 43... Rg1 {[%clk 0:00:05.4]} 1/2-1/2

[Event "*** Titled Tuesday Blitz"]
[Site "Chess.com"]
[Date "2020.04.28"]
[Round "6"]
[White "QueenOfTactics90"]
[Black "vinodbhagwat1976"]
[Result "1-0"]
[WhiteElo "1945"]
[BlackElo "2230"]
[TimeControl "180+1"]
[EndTime "11:07:23 PDT"]
[Termination "QueenOfTactics90 won by resignation"]

1. e4 {[%clk 0:03:00.9]} 1... e5 {[%clk 0:02:59.5]} 2. Nf3 {[%clk 0:03:00.7]}
2... Nc6 {[%clk 0:02:59.7]} 3. d4 {[%clk 0:03:01.4]} 3... exd4 {[%clk
0:02:57.8]} 4. Nxd4 {[%clk 0:03:02.3]} 4... Nf6 {[%clk 0:02:58]} 5. Nxc6 {[%clk
0:03:01.3]} 5... bxc6 {[%clk 0:02:56.9]} 6. Nc3 {[%clk 0:02:59.1]} 6... Bb4
{[%clk 0:02:53.7]} 7. Bd3 {[%clk 0:02:59.4]} 7... d5 {[%clk 0:02:51.8]} 8. exd5
{[%clk 0:03:00.3]} 8... cxd5 {[%clk 0:02:52]} 9. O-O {[%clk 0:03:01]} 9... O-O
{[%clk 0:02:51.8]} 10. h3 {[%clk 0:03:01.3]} 10... c6 {[%clk 0:02:51.3]} 11. Qf3
{[%clk 0:03:01.6]} 11... Qc7 {[%clk 0:02:34.9]} 12. Bg5 {[%clk 0:02:58.9]} 12...
Be7 {[%clk 0:02:30.5]} 13. Bf4 {[%clk 0:02:56.9]} 13... Bd6 {[%clk 0:02:29.4]}
14. Bg5 {[%clk 0:02:56.8]} 14... Be5 {[%clk 0:02:22.5]} 15. Rfe1 {[%clk
0:02:55.5]} 15... h6 {[%clk 0:02:21.5]} 16. Bh4 {[%clk 0:02:37.2]} 16... Rb8
{[%clk 0:02:19.6]} 17. Rab1 {[%clk 0:02:31.6]} 17... Be6 {[%clk 0:01:24.4]} 18.
Rxe5 {[%clk 0:02:18.4]} 18... Qxe5 {[%clk 0:01:22]} 19. Bg3 {[%clk 0:02:18.8]}
19... Qg5 {[%clk 0:01:09]} 20. Bxb8 {[%clk 0:02:15.2]} 20... Rxb8 {[%clk
0:01:08.2]} 21. Ne2 {[%clk 0:02:12.9]} 21... Qd2 {[%clk 0:00:48.9]} 22. Qf4
{[%clk 0:02:01]} 22... Qxf4 {[%clk 0:00:47.1]} 23. Nxf4 {[%clk 0:02:01.9]} 23...
Kf8 {[%clk 0:00:44.4]} 24. f3 {[%clk 0:01:55.6]} 24... Ke7 {[%clk 0:00:43.9]}
25. Kf2 {[%clk 0:01:54.3]} 25... Kd6 {[%clk 0:00:43.9]} 26. b3 {[%clk
0:01:54.4]} 26... Rb4 {[%clk 0:00:39.7]} 27. g3 {[%clk 0:01:48.6]} 27... a5
{[%clk 0:00:34.7]} 28. c3 {[%clk 0:01:42.3]} 28... Rb8 {[%clk 0:00:32.9]} 29. h4
{[%clk 0:01:39.7]} 29... Nd7 {[%clk 0:00:31.7]} 30. Re1 {[%clk 0:01:35.9]} 30...
Ne5 {[%clk 0:00:30.2]} 31. Bc2 {[%clk 0:01:35.3]} 31... a4 {[%clk 0:00:27.9]}
32. Nh5 {[%clk 0:01:34.4]} 32... g6 {[%clk 0:00:25.4]} 33. Nf6 {[%clk
0:01:30.5]} 33... axb3 {[%clk 0:00:24.1]} 34. axb3 {[%clk 0:01:29.2]} 34... Nd7
{[%clk 0:00:19.4]} 35. Nxd7 {[%clk 0:01:25]} 35... Kxd7 {[%clk 0:00:19.4]} 36.
g4 {[%clk 0:01:22.4]} 36... Ra8 {[%clk 0:00:18.5]} 37. Kg3 {[%clk 0:01:22]}
37... Ra2 {[%clk 0:00:17.9]} 38. Re2 {[%clk 0:01:21.2]} 38... d4 {[%clk
0:00:17.8]} 39. cxd4 {[%clk 0:01:13.8]} 39... Bxb3 {[%clk 0:00:17]} 40. Bd3
{[%clk 0:01:12]} 40... Rxe2 {[%clk 0:00:16.3]} 41. Bxe2 {[%clk 0:01:12.1]} 41...
Kd6 {[%clk 0:00:16.6]} 42. Kf2 {[%clk 0:01:10.9]} 42... Kd5 {[%clk 0:00:16.8]}
43. Ke3 {[%clk 0:01:11.5]} 43... Bc2 {[%clk 0:00:16.7]} 44. g5 {[%clk 0:01:08]}
44... hxg5 {[%clk 0:00:15.9]} 45. hxg5 {[%clk 0:01:08.5]} 45... Bf5 {[%clk
0:00:15.9]} 46. Bd1 {[%clk 0:01:07.7]} 46... Kc4 {[%clk 0:00:14.5]} 47. Ba4
{[%clk 0:01:04]} 47... Bd7 {[%clk 0:00:13.5]} 48. Ke4 {[%clk 0:01:04.2]} 48...
Bf5+ {[%clk 0:00:12.2]} 49. Ke5 {[%clk 0:01:04.3]} 49... Kd3 {[%clk 0:00:11.3]}
50. Bxc6 {[%clk 0:01:03.6]} 50... Ke3 {[%clk 0:00:11.3]} 51. d5 {[%clk
0:01:01.2]} 51... Kxf3 {[%clk 0:00:11.4]} 52. d6+ {[%clk 0:01:01.7]} 52... Kg4
{[%clk 0:00:11.4]} 53. Kf6 {[%clk 0:01:01.9]} 53... Kf4 {[%clk 0:00:09.7]} 54.
d7 {[%clk 0:01:02.1]} 54... Bxd7 {[%clk 0:00:09.8]} 55. Bxd7 {[%clk 0:01:03]}
55... Ke4 {[%clk 0:00:09.1]} 56. Be8 {[%clk 0:01:03.4]} 1-0

[Event "*** Titled Tuesday Blitz"]
[Site "Chess.com"]
[Date "2020.04.28"]
[Round "6"]
[White "Fh2411"]
[Black "Meri-Arabidze"]
[Result "1-0"]
[WhiteElo "2491"]
[BlackElo "2612"]
[TimeControl "180+1"]
[EndTime "11:07:24 PDT"]
[Termination "Fh2411 won on time"]

1. d4 {[%clk 0:03:00.5]} 1... d5 {[%clk 0:02:59.9]} 2. Nf3 {[%clk 0:02:59.3]}
2... Nf6 {[%clk 0:02:59.6]} 3. Bf4 {[%clk 0:02:59.8]} 3... e6 {[%clk 0:03:00]}
4. e3 {[%clk 0:03:00.4]} 4... Bd6 {[%clk 0:03:00.6]} 5. Bg3 {[%clk 0:03:01]}
5... c5 {[%clk 0:03:00.7]} 6. c3 {[%clk 0:03:00]} 6... Nc6 {[%clk 0:02:59.8]} 7.
Nbd2 {[%clk 0:02:59.9]} 7... O-O {[%clk 0:03:00.1]} 8. Bd3 {[%clk 0:03:00.1]}
8... b6 {[%clk 0:03:00.3]} 9. e4 {[%clk 0:02:57.9]} 9... Be7 {[%clk 0:02:59.8]}
10. e5 {[%clk 0:02:56.2]} 10... Nh5 {[%clk 0:02:59.9]} 11. a3 {[%clk 0:02:55]}
11... Bb7 {[%clk 0:02:57.2]} 12. Qe2 {[%clk 0:02:47.9]} 12... h6 {[%clk
0:02:56.2]} 13. O-O {[%clk 0:02:40.4]} 13... Nxg3 {[%clk 0:02:55.2]} 14. hxg3
{[%clk 0:02:39.3]} 14... Rc8 {[%clk 0:02:51.6]} 15. Rfe1 {[%clk 0:02:36.8]}
15... Re8 {[%clk 0:02:37.3]} 16. Nf1 {[%clk 0:02:32]} 16... Bf8 {[%clk
0:02:32.8]} 17. Ne3 {[%clk 0:02:27.5]} 17... Ne7 {[%clk 0:02:21.9]} 18. Rad1
{[%clk 0:02:20.3]} 18... Rc7 {[%clk 0:02:09.3]} 19. Bb1 {[%clk 0:02:15.8]} 19...
Qc8 {[%clk 0:01:54.4]} 20. Qd3 {[%clk 0:02:10.8]} 20... Ng6 {[%clk 0:01:54.5]}
21. Nh4 {[%clk 0:01:47]} 21... Ba6 {[%clk 0:01:53.5]} 22. Qc2 {[%clk 0:01:47]}
22... cxd4 {[%clk 0:01:46.7]} 23. Rxd4 {[%clk 0:01:46.4]} 23... Bc5 {[%clk
0:01:34.9]} 24. Nxg6 {[%clk 0:01:31.1]} 24... fxg6 {[%clk 0:01:27.1]} 25. Rf4
{[%clk 0:01:24.4]} 25... d4 {[%clk 0:00:50.6]} 26. Qxg6 {[%clk 0:01:17.4]} 26...
d3 {[%clk 0:00:50.8]} 27. Bxd3 {[%clk 0:01:12.8]} 27... Bxd3 {[%clk 0:00:49.5]}
28. Qxd3 {[%clk 0:01:13.7]} 28... Rd7 {[%clk 0:00:43.2]} 29. Qg6 {[%clk
0:01:11.4]} 29... Bxe3 {[%clk 0:00:33.8]} 30. Rxe3 {[%clk 0:01:12.3]} 30... Rd1+
{[%clk 0:00:29.8]} 31. Kh2 {[%clk 0:01:11.4]} 31... Rf8 {[%clk 0:00:13.5]} 32.
Rxf8+ {[%clk 0:01:08.6]} 32... Qxf8 {[%clk 0:00:13.6]} 33. Qxe6+ {[%clk
0:01:08]} 33... Kh7 {[%clk 0:00:12.6]} 34. Rf3 {[%clk 0:01:04.5]} 34... Qc5
{[%clk 0:00:12.4]} 35. Qf5+ {[%clk 0:01:00]} 35... Kg8 {[%clk 0:00:12.2]} 36.
Qf7+ {[%clk 0:00:40.1]} 36... Kh7 {[%clk 0:00:12]} 37. e6 {[%clk 0:00:38]} 37...
Rd5 {[%clk 0:00:10.2]} 38. g4 {[%clk 0:00:30.7]} 38... Qd6+ {[%clk 0:00:09.2]}
39. g3 {[%clk 0:00:28]} 39... Re5 {[%clk 0:00:09.5]} 40. Rf6 {[%clk 0:00:27.8]}
40... Qd3 {[%clk 0:00:05.6]} 41. Rf5 {[%clk 0:00:24.3]} 41... Re1 {[%clk
0:00:03.8]} 42. g5 {[%clk 0:00:12.8]} 1-0

[Event "*** Titled Tuesday Blitz"]
[Site "Chess.com"]
[Date "2020.04.28"]
[Round "6"]
[White "Alexa797"]
[Black "Juanovic"]
[Result "1-0"]
[WhiteElo "2340"]
[BlackElo "2154"]
[TimeControl "180+1"]
[EndTime "11:07:24 PDT"]
[Termination "Alexa797 won by checkmate"]

1. d4 {[%clk 0:02:59.9]} 1... d5 {[%clk 0:02:59.7]} 2. c4 {[%clk 0:03:00.2]}
2... c6 {[%clk 0:03:00.2]} 3. Nc3 {[%clk 0:03:00.9]} 3... Nf6 {[%clk 0:03:00.5]}
4. e3 {[%clk 0:02:58.9]} 4... e6 {[%clk 0:03:00.2]} 5. a3 {[%clk 0:02:59]} 5...
Nbd7 {[%clk 0:03:00.7]} 6. Nf3 {[%clk 0:02:59.2]} 6... g6 {[%clk 0:03:01]} 7.
Be2 {[%clk 0:02:53.7]} 7... a5 {[%clk 0:03:01.2]} 8. O-O {[%clk 0:02:53.1]} 8...
Bg7 {[%clk 0:03:01.7]} 9. Qc2 {[%clk 0:02:51.9]} 9... O-O {[%clk 0:03:01.9]} 10.
e4 {[%clk 0:02:52.1]} 10... dxe4 {[%clk 0:03:01.9]} 11. Nxe4 {[%clk 0:02:52.8]}
11... Qc7 {[%clk 0:02:59.4]} 12. Ng3 {[%clk 0:02:45.1]} 12... e5 {[%clk
0:02:55.6]} 13. Rd1 {[%clk 0:02:34.5]} 13... Re8 {[%clk 0:02:50.2]} 14. Bf1
{[%clk 0:02:27.4]} 14... h5 {[%clk 0:02:37.7]} 15. h4 {[%clk 0:02:25.8]} 15...
Ng4 {[%clk 0:02:32.8]} 16. Bg5 {[%clk 0:02:15.8]} 16... exd4 {[%clk 0:02:29.4]}
17. Nxd4 {[%clk 0:02:14.6]} 17... a4 {[%clk 0:01:58.6]} 18. Re1 {[%clk 0:01:57]}
18... Rxe1 {[%clk 0:01:45.2]} 19. Rxe1 {[%clk 0:01:57.9]} 19... Bxd4 {[%clk
0:01:42.5]} 20. Re8+ {[%clk 0:01:44.5]} 20... Nf8 {[%clk 0:01:41.8]} 21. Ne4
{[%clk 0:01:22.7]} 21... Bg7 {[%clk 0:01:26.8]} 22. g3 {[%clk 0:01:15.6]} 22...
Ra5 {[%clk 0:01:13.4]} 23. c5 {[%clk 0:01:14.9]} 23... Bf5 {[%clk 0:01:04.2]}
24. Bc4 {[%clk 0:01:14.6]} 24... Qd7 {[%clk 0:00:44.1]} 25. Rd8 {[%clk
0:01:07.2]} 25... Qc7 {[%clk 0:00:26.8]} 26. Ba2 {[%clk 0:00:49.9]} 26... Qe5
{[%clk 0:00:22]} 27. Bb1 {[%clk 0:00:37.5]} 27... Rxc5 {[%clk 0:00:21.4]} 28.
Qxc5 {[%clk 0:00:32]} 28... Qxc5 {[%clk 0:00:21.6]} 29. Nxc5 {[%clk 0:00:32.1]}
29... Bxb1 {[%clk 0:00:22.5]} 30. Nd7 {[%clk 0:00:16.7]} 30... Bf5 {[%clk
0:00:16.6]} 31. Nxf8 {[%clk 0:00:16.3]} 31... Bxf8 {[%clk 0:00:17.5]} 32. Be7
{[%clk 0:00:16.7]} 32... Kg7 {[%clk 0:00:13.4]} 33. Bxf8+ {[%clk 0:00:16.1]}
33... Kh7 {[%clk 0:00:13.8]} 34. Be7 {[%clk 0:00:13]} 34... Be6 {[%clk
0:00:12.7]} 35. Rb8 {[%clk 0:00:10.1]} 35... Kg7 {[%clk 0:00:11.9]} 36. Rxb7
{[%clk 0:00:09.9]} 36... Bd5 {[%clk 0:00:12.8]} 37. Ra7 {[%clk 0:00:08.5]} 37...
Bb3 {[%clk 0:00:10.4]} 38. Bb4 {[%clk 0:00:09.1]} 38... g5 {[%clk 0:00:08]} 39.
Bc3+ {[%clk 0:00:10]} 39... Kg6 {[%clk 0:00:08.4]} 40. Ra6 {[%clk 0:00:09.1]}
40... gxh4 {[%clk 0:00:08.5]} 41. Rxc6+ {[%clk 0:00:08.6]} 41... Kf5 {[%clk
0:00:09]} 42. gxh4 {[%clk 0:00:08.1]} 42... f6 {[%clk 0:00:06.3]} 43. f3 {[%clk
0:00:07.5]} 43... Ne3 {[%clk 0:00:06]} 44. Rxf6# {[%clk 0:00:07.3]} 1-0

[Event "*** Titled Tuesday Blitz"]
[Site "Chess.com"]
[Date "2020.04.28"]
[Round "6"]
[White "Jaka_Brilej"]
[Black "Bastiandash"]
[Result "1-0"]
[WhiteElo "2377"]
[BlackElo "2019"]
[TimeControl "180+1"]
[EndTime "11:07:25 PDT"]
[Termination "Jaka_Brilej won on time"]

1. e4 {[%clk 0:03:00.9]} 1... d5 {[%clk 0:02:57.4]} 2. exd5 {[%clk 0:03:00.4]}
2... Qxd5 {[%clk 0:02:58.1]} 3. Nc3 {[%clk 0:02:58.9]} 3... Qd8 {[%clk
0:02:58.5]} 4. d4 {[%clk 0:02:58.2]} 4... Nf6 {[%clk 0:02:58.9]} 5. Bc4 {[%clk
0:02:55]} 5... Bf5 {[%clk 0:02:57.8]} 6. Nge2 {[%clk 0:02:53.9]} 6... e6 {[%clk
0:02:56.2]} 7. O-O {[%clk 0:02:51.9]} 7... c6 {[%clk 0:02:56]} 8. Ng3 {[%clk
0:02:52.1]} 8... Bg6 {[%clk 0:02:55.7]} 9. f4 {[%clk 0:02:52.4]} 9... Bd6 {[%clk
0:02:15.8]} 10. f5 {[%clk 0:02:51.7]} 10... exf5 {[%clk 0:02:16.7]} 11. Re1+
{[%clk 0:02:43.7]} 11... Be7 {[%clk 0:01:48.9]} 12. d5 {[%clk 0:02:00.3]} 12...
O-O {[%clk 0:01:43.8]} 13. Bf4 {[%clk 0:01:52.8]} 13... cxd5 {[%clk 0:01:18.5]}
14. Nxd5 {[%clk 0:01:49.6]} 14... Bc5+ {[%clk 0:01:10.5]} 15. Kh1 {[%clk
0:01:45.7]} 15... Nc6 {[%clk 0:00:33.7]} 16. Bc7 {[%clk 0:01:33.9]} 16... Ng4
{[%clk 0:00:16.3]} 17. Qxg4 {[%clk 0:01:15.4]} 17... fxg4 {[%clk 0:00:13.1]} 18.
Bxd8 {[%clk 0:01:15.1]} 18... Raxd8 {[%clk 0:00:13.3]} 19. c3 {[%clk 0:01:12.9]}
19... a6 {[%clk 0:00:13.4]} 20. Rad1 {[%clk 0:01:10.7]} 20... h6 {[%clk
0:00:11.4]} 21. Nf4 {[%clk 0:01:07.7]} 21... Kh7 {[%clk 0:00:11]} 22. Nxg6
{[%clk 0:01:00.7]} 22... fxg6 {[%clk 0:00:10.2]} 23. Ne4 {[%clk 0:00:51.3]}
23... Bf2 {[%clk 0:00:08.3]} 24. Rxd8 {[%clk 0:00:44.9]} 24... Nxd8 {[%clk
0:00:05.9]} 25. Rf1 {[%clk 0:00:44.4]} 25... Bc5 {[%clk 0:00:03.7]} 26. Nxc5
{[%clk 0:00:43.7]} 26... Re8 {[%clk 0:00:04.1]} 27. Kg1 {[%clk 0:00:36.6]} 27...
Nc6 {[%clk 0:00:04.4]} 28. Bb3 {[%clk 0:00:35.2]} 28... Rc8 {[%clk 0:00:04.6]}
29. Nxb7 {[%clk 0:00:34.8]} 29... Rb8 {[%clk 0:00:04.7]} 30. Nd6 {[%clk
0:00:34.8]} 30... Na5 {[%clk 0:00:04.8]} 31. Ne4 {[%clk 0:00:27.8]} 31... Nxb3
{[%clk 0:00:05.1]} 32. axb3 {[%clk 0:00:27.3]} 32... Rxb3 {[%clk 0:00:06]} 33.
Rf2 {[%clk 0:00:27.6]} 33... h5 {[%clk 0:00:06.6]} 34. Nc5 {[%clk 0:00:27.3]}
34... Rb6 {[%clk 0:00:05.5]} 35. b4 {[%clk 0:00:27.3]} 35... Kh6 {[%clk
0:00:04.4]} 36. Nb3 {[%clk 0:00:27.1]} 36... Rc6 {[%clk 0:00:03.5]} 37. Rc2
{[%clk 0:00:25.4]} 37... g5 {[%clk 0:00:03.4]} 38. Na5 {[%clk 0:00:25.3]} 38...
Rc8 {[%clk 0:00:03.2]} 39. c4 {[%clk 0:00:25.4]} 39... Kg6 {[%clk 0:00:04.1]}
40. c5 {[%clk 0:00:25.7]} 40... Kf7 {[%clk 0:00:04.4]} 41. c6 {[%clk 0:00:26.1]}
41... Ke6 {[%clk 0:00:05.1]} 42. Nb3 {[%clk 0:00:20.9]} 42... Kd6 {[%clk
0:00:04.4]} 43. Nd4 {[%clk 0:00:20.7]} 43... Kc7 {[%clk 0:00:04.2]} 44. b5
{[%clk 0:00:19.8]} 44... axb5 {[%clk 0:00:03.6]} 45. Nxb5+ {[%clk 0:00:20.7]}
45... Kb8 {[%clk 0:00:03.7]} 46. Nd6 {[%clk 0:00:21]} 46... Rc7 {[%clk
0:00:02.5]} 47. Nb5 {[%clk 0:00:21.2]} 47... Rc8 {[%clk 0:00:02.1]} 48. c7+
{[%clk 0:00:21.7]} 1-0

[Event "*** Titled Tuesday Blitz"]
[Site "Chess.com"]
[Date "2020.04.28"]
[Round "6"]
[White "donotreadit"]
[Black "WIDBIFS"]
[Result "1-0"]
[WhiteElo "2692"]
[BlackElo "2824"]
[TimeControl "180+1"]
[EndTime "11:07:26 PDT"]
[Termination "donotreadit won by checkmate"]

1. Nf3 {[%clk 0:03:00.9]} 1... Nf6 {[%clk 0:03:00]} 2. b3 {[%clk 0:02:57.9]}
2... g6 {[%clk 0:03:00.5]} 3. Bb2 {[%clk 0:02:58.1]} 3... Bg7 {[%clk 0:03:01.4]}
4. g3 {[%clk 0:02:58.1]} 4... O-O {[%clk 0:03:01.9]} 5. Bg2 {[%clk 0:02:58.8]}
5... d6 {[%clk 0:02:59]} 6. d4 {[%clk 0:02:58.8]} 6... Nc6 {[%clk 0:02:58.7]} 7.
O-O {[%clk 0:02:58.8]} 7... a5 {[%clk 0:02:59.2]} 8. a4 {[%clk 0:02:58]} 8...
Bf5 {[%clk 0:02:58.9]} 9. Nbd2 {[%clk 0:02:57.5]} 9... d5 {[%clk 0:02:52.2]} 10.
c3 {[%clk 0:02:55.2]} 10... Ne4 {[%clk 0:02:52]} 11. Nh4 {[%clk 0:02:54.9]}
11... Nxd2 {[%clk 0:02:49.8]} 12. Qxd2 {[%clk 0:02:55.8]} 12... Be6 {[%clk
0:02:49.6]} 13. Ba3 {[%clk 0:02:49.7]} 13... Qd7 {[%clk 0:02:49.5]} 14. Rfe1
{[%clk 0:02:47.5]} 14... Rfe8 {[%clk 0:02:46.9]} 15. f4 {[%clk 0:02:46.4]} 15...
Bh3 {[%clk 0:02:28.4]} 16. Rad1 {[%clk 0:02:39.6]} 16... Bxg2 {[%clk 0:02:27.3]}
17. Kxg2 {[%clk 0:02:40.5]} 17... Rad8 {[%clk 0:02:24.9]} 18. Rf1 {[%clk
0:02:32]} 18... Qe6 {[%clk 0:02:15.6]} 19. f5 {[%clk 0:02:27.7]} 19... Qe4+
{[%clk 0:01:43.2]} 20. Kg1 {[%clk 0:02:27.4]} 20... e5 {[%clk 0:01:43.4]} 21. f6
{[%clk 0:02:00.4]} 21... Bh8 {[%clk 0:01:43.4]} 22. Nf5 {[%clk 0:01:11.9]} 22...
Bxf6 {[%clk 0:01:42.1]} 23. Nh6+ {[%clk 0:01:11.3]} 23... Kg7 {[%clk 0:01:42.6]}
24. Rxf6 {[%clk 0:01:11.3]} 24... Kxf6 {[%clk 0:01:40]} 25. Rf1+ {[%clk
0:01:11.9]} 25... Kg7 {[%clk 0:01:33.6]} 26. Nxf7 {[%clk 0:01:10.4]} 26... Rd7
{[%clk 0:00:33.4]} 27. Qh6+ {[%clk 0:01:09.5]} 27... Kg8 {[%clk 0:00:33.3]} 28.
Ng5 {[%clk 0:01:10.1]} 28... Qe3+ {[%clk 0:00:32.3]} 29. Kh1 {[%clk 0:01:10.8]}
29... Rg7 {[%clk 0:00:17.8]} 30. Bf8 {[%clk 0:00:46.7]} 30... Rd7 {[%clk
0:00:17.7]} 31. Bc5 {[%clk 0:00:28.6]} 31... Rg7 {[%clk 0:00:15.5]} 32. b4
{[%clk 0:00:25.5]} 32... exd4 {[%clk 0:00:14.3]} 33. b5 {[%clk 0:00:23]} 33...
Qxe2 {[%clk 0:00:10.2]} 34. Qh3 {[%clk 0:00:19.2]} 34... Ne5 {[%clk 0:00:06.4]}
35. Bf8 {[%clk 0:00:15.9]} 35... Ng4 {[%clk 0:00:05.8]} 36. Bxg7 {[%clk
0:00:14.2]} 36... h5 {[%clk 0:00:05.3]} 37. Bxd4 {[%clk 0:00:13.3]} 37... Re3
{[%clk 0:00:01.6]} 38. Qg2 {[%clk 0:00:13.1]} 38... Qxg2+ {[%clk 0:00:01.5]} 39.
Kxg2 {[%clk 0:00:12.8]} 39... Re2+ {[%clk 0:00:02.4]} 40. Kg1 {[%clk 0:00:10.1]}
40... Rxh2 {[%clk 0:00:02.9]} 41. Ne6 {[%clk 0:00:08.6]} 41... Re2 {[%clk
0:00:02.7]} 42. Rf8+ {[%clk 0:00:08.8]} 42... Kh7 {[%clk 0:00:02.5]} 43. Rh8#
{[%clk 0:00:09.7]} 1-0

[Event "*** Titled Tuesday Blitz"]
[Site "Chess.com"]
[Date "2020.04.28"]
[Round "6"]
[White "Gareth-Bale11"]
[Black "Uzbektiger1963"]
[Result "0-1"]
[WhiteElo "2741"]
[BlackElo "2544"]
[TimeControl "180+1"]
[EndTime "11:07:26 PDT"]
[Termination "Uzbektiger1963 won by resignation"]

1. d4 {[%clk 0:03:00.9]} 1... Nf6 {[%clk 0:02:59.9]} 2. c4 {[%clk 0:02:59.7]}
2... g6 {[%clk 0:02:58.7]} 3. Nc3 {[%clk 0:02:59.2]} 3... d5 {[%clk 0:02:58.3]}
4. cxd5 {[%clk 0:02:57.8]} 4... Nxd5 {[%clk 0:02:59.2]} 5. e4 {[%clk 0:02:58.5]}
5... Nxc3 {[%clk 0:02:59.4]} 6. bxc3 {[%clk 0:02:59.4]} 6... Bg7 {[%clk
0:03:00.3]} 7. Be3 {[%clk 0:02:58.1]} 7... c5 {[%clk 0:02:57.5]} 8. Rc1 {[%clk
0:02:54.8]} 8... O-O {[%clk 0:02:56.5]} 9. Qd2 {[%clk 0:02:53.9]} 9... e5 {[%clk
0:02:56.5]} 10. Nf3 {[%clk 0:02:34]} 10... exd4 {[%clk 0:02:41.3]} 11. cxd4
{[%clk 0:02:34.9]} 11... cxd4 {[%clk 0:02:41.5]} 12. Nxd4 {[%clk 0:02:27.6]}
12... Qe7 {[%clk 0:02:31.5]} 13. Qc2 {[%clk 0:02:07]} 13... Qb4+ {[%clk
0:02:16.1]} 14. Qd2 {[%clk 0:01:46.4]} 14... Qxd2+ {[%clk 0:02:15.5]} 15. Kxd2
{[%clk 0:01:47.3]} 15... Rd8 {[%clk 0:02:09.5]} 16. Bd3 {[%clk 0:01:44.6]} 16...
Na6 {[%clk 0:01:58.9]} 17. Rc4 {[%clk 0:01:17.3]} 17... Bd7 {[%clk 0:01:54.4]}
18. Rb1 {[%clk 0:01:12.8]} 18... b6 {[%clk 0:01:51.5]} 19. Nc6 {[%clk
0:00:58.6]} 19... Bxc6 {[%clk 0:01:24.4]} 20. Rxc6 {[%clk 0:00:58.3]} 20... Bf8
{[%clk 0:01:24.9]} 21. Ke2 {[%clk 0:00:46.7]} 21... Nb4 {[%clk 0:01:24.6]} 22.
Rc3 {[%clk 0:00:38.9]} 22... Nxa2 {[%clk 0:01:13.2]} 23. Rcb3 {[%clk 0:00:23]}
23... Rac8 {[%clk 0:01:10.3]} 24. Kf3 {[%clk 0:00:15]} 24... Nc3 {[%clk
0:01:08.9]} 25. Ba6 {[%clk 0:00:14.8]} 25... Nxb1 {[%clk 0:01:01.3]} 26. Bxc8
{[%clk 0:00:15.3]} 26... Nd2+ {[%clk 0:01:00.8]} 27. Bxd2 {[%clk 0:00:15.1]}
27... Rxd2 {[%clk 0:01:01.7]} 28. Kg3 {[%clk 0:00:09]} 28... Bd6+ {[%clk
0:01:01.7]} 29. f4 {[%clk 0:00:08.7]} 29... g5 {[%clk 0:01:01.4]} 30. e5 {[%clk
0:00:09]} 30... gxf4+ {[%clk 0:00:49.2]} 31. Kxf4 {[%clk 0:00:09.9]} 31... Rd4+
{[%clk 0:00:35.1]} 32. Kf5 {[%clk 0:00:09.5]} 32... Rd5 {[%clk 0:00:35.5]} 33.
Re3 {[%clk 0:00:09.5]} 33... Kf8 {[%clk 0:00:29.1]} 34. Bb7 {[%clk 0:00:08.2]}
34... Rc5 {[%clk 0:00:28.8]} 35. Kf6 {[%clk 0:00:08.6]} 35... Be7+ {[%clk
0:00:26.9]} 36. Kf5 {[%clk 0:00:08.8]} 36... Bd8 {[%clk 0:00:21.2]} 37. Ba6
{[%clk 0:00:08.4]} 37... Ke7 {[%clk 0:00:19.5]} 38. Rd3 {[%clk 0:00:05.5]} 38...
Bc7 {[%clk 0:00:19.3]} 39. Re3 {[%clk 0:00:05.4]} 39... f6 {[%clk 0:00:19.6]}
40. Bc8 {[%clk 0:00:04.9]} 40... Bxe5 {[%clk 0:00:16.6]} 41. Bb7 {[%clk
0:00:05.1]} 41... a5 {[%clk 0:00:15.9]} 42. g3 {[%clk 0:00:05.3]} 42... a4
{[%clk 0:00:15.3]} 43. Rd3 {[%clk 0:00:04.9]} 43... a3 {[%clk 0:00:14.3]} 44.
Rxa3 {[%clk 0:00:04.6]} 44... Bb2+ {[%clk 0:00:13.9]} 0-1